[Event "AZE-ch Women 2019"]
[Site "Baku"]
[Date "2019.02.05"]
[Round "2.2"]
[White "Balajayeva, Khanim"]
[Black "Beydullayeva, Govhar"]
[Result "1/2-1/2"]
[ECO "B22"]
[WhiteElo "2397"]
[BlackElo "2239"]
[Annotator "RC"]
[PlyCount "140"]
[EventDate "2019.02.04"]
[EventType "swiss"]
[EventCountry "AZE"]
[SourceTitle "playchess.com"]
[Source "ChessBase"]
[SourceQuality "1"]
[TimeControl "40/5400+30:1800+30"]

1. e4 {[%emt 0:00:00]} c5 {[%emt 0:00:00]} 2. c3 {[%emt 0:00:00]} Nf6 {[%emt 0:00:00]} 3. e5 {[%emt 0:00:00]} Nd5 {[%emt 0:00:00]} 4. d4 {[%emt 0:00:00]} cxd4 {[%emt 0:00:08]} 5. Nf3 {[%emt 0:00:20]} Nc6 {[%emt 0:00:10]} 6. cxd4 {[%emt 0:00:04]} d6 {[%emt 0:00:02]} 7. Bc4 {[%emt 0:00:24]} e6 {[%emt 0:00:31]} 8. O-O {[%emt 0:00:58]} Be7 {[%emt 0:00:27]} 9. Qe2 {[%emt 0:00:53]} O-O {[%emt 0:00:46]} 10. Rd1 {[%emt 0:04:16]} Na5 {[%emt 0:00:19]} 11. b3 {[%emt 0:00:34]} Bd7 {[%emt 0:01:06]} 12. Bxd5 {[%emt 0:04:16]} exd5 {[%emt 0:00:03]} 13. Ba3 {[%emt 0:01:14]} Be6 {[%emt 0:04:45]} 14. Nc3 {[%emt 0:01:42]} a6 {[%emt 0:00:09]} 15. Rac1 {[%emt 0:11:28]} Nc6 {[%emt 0:00:04]} 16. exd6 {[%emt 0:01:28]} Bxd6 {[%emt 0:00:10]} 17. Bxd6 {[%emt 0:00:06]} Qxd6 {[%emt 0:00:02]} 18. Ne5 {[%emt 0:03:52]} Rac8 {[%emt 0:01:52]} 19. Nxc6 {[%emt 0:02:57]} Rxc6 {[%emt 0:07:44]} 20. Na4 {[%emt 0:02:16]} Rfc8 {[%emt 0:04:18]} 21. Rc5 {[%emt 0:04:58]} h6 {[%emt 0:17:32]} 22. Rdc1 {[%emt 0:14:23]} Rxc5 {[%emt 0:07:19]} 23. Nxc5 {[%emt 0:09:19]} b6 {[%emt 0:17:23]} 24. Nd3 {[%emt 0:00:04]} Rxc1+ {[%emt 0:00:42]} 25. Nxc1 {[%emt 0:00:04]} Qf4 {[%emt 0:02:42]} 26. Qe3 {[%emt 0:01:14]} Qxe3 {[%emt 0:00:45]} 27. fxe3 {[%emt 0:00:05]} Kf8 {[%emt 0:03:18]} 28. Kf2 {[%emt 0:02:23]} Ke7 {[%emt 0:00:39]} 29. Ne2 {[%emt 0:04:08]} Bf5 {[%emt 0:03:59]} 30. Nc3 {[%emt 0:00:52]} Kd6 {[%emt 0:00:27]} 31. Kf3 {[%emt 0:02:18]} Bd3 {[%emt 0:04:14]} 32. h4 {[%emt 0:05:33]} Bc2 {[%emt 0:04:57]} 33. b4 {[%emt 0:03:29]} Bd3 {[%emt 0:03:30]} 34. Kf4 {[%emt 0:02:16]} f6 {[%emt 0:09:30]} 35. g3 {[%emt 0:04:55]} Bc2 {[%emt 0:01:07]} 36. Kf3 {[%emt 0:00:32]} Bd3 {[%emt 0:00:12]} 37. Kf2 {[%emt 0:00:18]} Bf5 {[%emt 0:01:52]} 38. Ke2 {[%emt 0:01:24]} Bg4+ {[%emt 0:00:16]} 39. Kd2 {[%emt 0:01:14]} Bf5 {[%emt 0:00:07]} 40. Ne2 {[%emt 0:00:00]} g5 {[%emt 0:00:00]} 41. Nc3 {[%emt 0:03:05]} Bg6 {[%emt 0:06:52]} 42. Ke2 {[%emt 0:01:43]} Bc2 {[%emt 0:06:50]} 43. Kf3 {[%emt 0:01:09]} Bf5 {[%emt 0:00:06]} 44. a3 {[%emt 0:02:58]} Bg6 {[%emt 0:03:02]} 45. hxg5 {[%emt 0:09:01]} hxg5 {[%emt 0:02:21]} 46. Kf2 {[%emt 0:08:39]} g4 {[%emt 0:02:42]} 47. Ke2 {[%emt 0:04:03]} Kc6 {[%emt 0:06:06]} 48. Kd2 {[%emt 0:05:46]} b5 {[%emt 0:01:38]} 49. Ne2 {[%emt 0:00:28]} Be4 {[%emt 0:00:07]} 50. Nc1 {[%emt 0:00:42]} Kb6 {[%emt 0:00:49]} 51. Nb3 {[%emt 0:00:05]} f5 {[%emt 0:00:26]} 52. Nc5 {[%emt 0:00:12]} Ka7 {[%emt 0:00:08]} 53. Kc3 {[%emt 0:00:57]} Kb6 {[%emt 0:00:16]} 54. a4 {[%emt 0:01:27]} Ka7 {[%emt 0:01:27]} 55. a5 {[%emt 0:00:15]} Bf3 {[%emt 0:00:05]} 56. Kd3 {[%emt 0:00:10]} Be4+ {[%emt 0:00:03]} 57. Kd2 {[%emt 0:00:03]} Bf3 {[%emt 0:00:03]} 58. e4 {[%emt 0:05:52]} fxe4 {[%emt 0:03:34]} 59. Ke3 {[%emt 0:00:05]} Bd1 {[%emt 0:00:04]} 60. Kf4 {[%emt 0:00:37]} Bf3 {[%emt 0:00:04]} 61. Nd7 {[%emt 0:00:55]} Kb7 {[%emt 0:00:03]} 62. Ke3 {[%emt 0:00:24]} Bd1 {[%emt 0:00:23]} 63. Nf8 {[%emt 0:03:05]} Kc7 {[%emt 0:01:10]} 64. Ne6+ {[%emt 0:00:10]} Kb7 {[%emt 0:00:05]} 65. Nd8+ {[%emt 0:01:05]} Kc7 {[%emt 0:00:21]} 66. Ne6+ {[%emt 0:00:19]} Kb7 {[%emt 0:00:06]} 67. Kf4 {[%emt 0:00:05]} Bf3 {[%emt 0:00:10]} 68. Nc5+ {[%emt 0:01:07]} Ka7 {[%emt 0:00:04]} 69. Nd7 {[%emt 0:02:12]} Kb7 {[%emt 0:00:09]} 70. Nc5+ {[%emt 0:00:02]} Ka7 1/2-1/2

[Event "AZE-ch Women 2019"]
[Site "Baku"]
[Date "2019.02.05"]
[Round "2.6"]
[White "Ismayil, Malak"]
[Black "Soyunlu, Narmin"]
[Result "0-1"]
[ECO "C54"]
[WhiteElo "1905"]
[BlackElo "2029"]
[Annotator "NA RC"]
[PlyCount "100"]
[EventDate "2019.02.04"]
[EventType "swiss"]
[EventCountry "AZE"]
[SourceTitle "playchess.com"]
[Source "ChessBase"]
[SourceQuality "1"]
[TimeControl "40/5400+30:1800+30"]

{[%evp 21,100,0,0,0,0,-82,-65,-75,-67,-59,-58,-69,-68,-80,-56,-60,-73,-75,-57,-69,32767,-60,-35,-122,32767,32767,-62,-64,-53,-51,-55,-54,-54,-395,-400,-410,-405,-423,-423,-438,-455,-489,-647,32767,32767,-422,-468,-423,-502,-515,-739,-793,-1457,-716,-5461,-1289,-29960,-1433,-29953,-29969,-5531,-5518,-29968,-29972,32767,-29972,-29974,-29964,-29976,-29978,-29978,-29979,-29980,-29984,-29980,-29987,-29979,-29980,-29981,-29981,-29982]} 1. e4 {[%emt 0:00:00]} e5 {[%emt 0:00:00]} 2. Nf3 {[%emt 0:00:00]} Nc6 {[%emt 0:00:00]} 3. Bc4 {[%emt 0:00:00]} Bc5 {[%emt 0:00:00]} 4. c3 {[%emt 0:00:00]} Nf6 {[%emt 0:00:00]} 5. d4 {[%emt 0:00:02]} exd4 {[%emt 0:00:00]} 6. e5 {[%emt 0:00:04]} d5 {[%emt 0:00:00]} 7. Bb5 {[%emt 0:00:04]} Ne4 {[%emt 0:00:00]} 8. cxd4 {[%emt 0:00:03]} Bb6 {[%emt 0:00:00]} 9. Nc3 {[%emt 0:00:34]} O-O {[%emt 0:00:17]} 10. Be3 {[%emt 0:00:29]} f5 {[%emt 0:00:14]} 11. exf6 {[%emt 0:00:48]} Rxf6 {[%emt 0:04:01]} 12. O-O {[%emt 0:10:08]} Bg4 {[%emt 0:05:34]} 13. Nxe4 {[%emt 0:02:01]} (13. Be2 $11) 13... dxe4 {[%emt 0:03:14]} 14. Qb3+ {[%emt 0:00:11]} Be6 {[%emt 0:15:18]} 15. Bc4 {[%emt 0:00:14]} exf3 {[%emt 0:01:36]} 16. Bxe6+ {[%emt 0:00:04]} Kh8 {[%emt 0:00:16]} 17. d5 {[%emt 0:18:09]} fxg2 $1 {[%emt 0:05:59]} 18. Kxg2 {[%emt 0:00:57]} Nd4 {[%emt 0:11:54]} 19. Bxd4 $1 {[%emt 0:08:06]} Bxd4 {[%emt 0:00:06]} 20. f4 {[%emt 0:01:17]} Qd6 {[%emt 0:17:50]} 21. f5 {[%emt 0:05:09]} Raf8 {[%emt 0:07:20]} 22. Rf3 {[%emt 0:12:12]} (22. Rae1 $15) 22... g6 {[%emt 0:06:48]} (22... Rh6 $17 23. Rh3 Rxh3 24. Qxh3 Bxb2) 23. Raf1 {[%emt 0:03:35]} gxf5 {[%emt 0:03:16]} 24. Rxf5 {[%emt 0:05:24]} Rg6+ {[%emt 0:01:32]} 25. Kh1 {[%emt 0:03:55]} Rxf5 {[%emt 0:03:53]} 26. Bxf5 {[%emt 0:00:07]} Rf6 {[%emt 0:03:01]} 27. Qxb7 $2 {[%emt 0:10:49] [#]} ({White should try} 27. Qf3 $15) 27... Qf8 $1 {[%emt 0:03:24]} 28. Qxc7 {[%emt 0:10:26]} Rxf5 {[%emt 0:00:06]} 29. Rxf5 {[%emt 0:00:04]} Qxf5 {[%emt 0:00:04]} 30. Qd8+ {[%emt 0:01:40]} Kg7 {[%emt 0:00:06]} 31. Qe7+ {[%emt 0:00:20]} Qf7 {[%emt 0:02:35]} 32. Qg5+ {[%emt 0:00:07]} Kh8 {[%emt 0:00:33]} 33. h4 {[%emt 0:08:37]} Qf3+ {[%emt 0:00:06]} 34. Kh2 {[%emt 0:00:16]} Bf6 {[%emt 0:00:37]} 35. Qg3 {[%emt 0:00:57]} Qxg3+ {[%emt 0:02:08]} 36. Kxg3 {[%emt 0:00:03]} Bxb2 {[%emt 0:00:06]} 37. Kf4 {[%emt 0:00:54]} Bf6 {[%emt 0:00:04]} 38. h5 {[%emt 0:00:08]} Kg7 {[%emt 0:00:51]} 39. Kf5 {[%emt 0:00:05]} Kf7 {[%emt 0:01:03]} 40. a4 {[%emt 0:00:00]} Bh4 {[%emt 0:00:00]} (40... Ke7 $142 41. d6+ Kf7 42. d7 a6 43. Ke4 Ke6 44. Kd3 Kxd7 45. Kc4 Kd6 46. Kb4 Kc6 47. Kc4 a5 48. h6 Bh8 49. Kb3 Kc5 50. Kc2 Kb4 51. Kd3 Kxa4 52. Kc4 Bb2 53. Kd5 Kb3 54. Ke6 a4 55. Kf7 a3 56. Kg8 a2 57. Kxh7 a1=Q 58. Kg6 Qb1+ 59. Kg5 Qe4 60. h7 Be5 61. Kh5 Qf5+ 62. Kh4 Bf4 63. h8=R Qg5+ 64. Kh3 Qg3#) 41. Kg4 {[%emt 0:01:18]} Be1 {[%emt 0:09:07]} 42. Kf5 {[%emt 0:01:17]} Ke7 {[%emt 0:00:59]} 43. Ke4 {[%emt 0:01:32]} Kd6 {[%emt 0:00:10]} 44. Kd4 {[%emt 0:00:05]} Bf2+ {[%emt 0:00:14]} 45. Kc4 {[%emt 0:00:06]} Bb6 {[%emt 0:00:19]} 46. Kb5 {[%emt 0:00:21]} Kxd5 {[%emt 0:00:27]} 47. a5 {[%emt 0:00:07]} Be3 {[%emt 0:00:20]} 48. a6 {[%emt 0:00:20]} Bb6 {[%emt 0:00:18]} 49. Kb4 {[%emt 0:00:05]} Kc6 {[%emt 0:00:19]} 50. Kc4 {[%emt 0:00:06]} Bc7 {[%emt 0:00:13]} 0-1

[Event "AZE-ch Women 2019"]
[Site "Baku"]
[Date "2019.02.05"]
[Round "2.7"]
[White "Hajiyeva, Laman"]
[Black "Heydarova, Aytaj"]
[Result "0-1"]
[ECO "E47"]
[WhiteElo "2040"]
[BlackElo "1747"]
[Annotator "NA RC"]
[PlyCount "61"]
[EventDate "2019.02.04"]
[EventType "swiss"]
[EventCountry "AZE"]
[SourceTitle "playchess.com"]
[Source "ChessBase"]
[SourceQuality "1"]
[TimeControl "40/5400+30:1800+30"]

{[%evp 13,61,0,18,6,10,2,0,12,0,0,32767,-11,-14,-28,32767,23,18,3,19,-16,-15,-15,-7,-25,0,9,5,0,32767,6,71,56,110,95,141,35,44,11,20,-246,32767,-318,-321,-1014,-1278,-1339,-1170,-1100,-1218,-29982]} 1. d4 {[%emt 0:00:00]} Nf6 {[%emt 0:00:00]} 2. c4 {[%emt 0:00:00]} e6 {[%emt 0:00:00]} 3. Nc3 {[%emt 0:00:00]} Bb4 {[%emt 0:00:00]} 4. e3 {[%emt 0:00:00]} O-O {[%emt 0:00:00]} ({Predecessor:} 4... c5 5. Bd3 Nc6 6. Nge2 cxd4 7. exd4 d5 8. cxd5 Nxd5 9. Bc2 O-O {½-½ (29) Tisdall,J (2470)-Bern,I (2360) Norway 1995}) 5. Bd3 {[%emt 0:00:00]} c5 {[%emt 0:00:00]} 6. Nge2 {[%emt 0:00:01]} d5 $146 {[%emt 0:00:22]} (6... cxd4 7. exd4 d5 {0-1 (23) Khismatullin,D (2658)-Riazantsev,A (2708) Khanty-Mansiysk 2013}) 7. cxd5 {[%emt 0:02:38]} cxd4 {[%emt 0:05:11]} 8. exd4 {[%emt 0:00:32]} Nxd5 {[%emt 0:01:05]} 9. O-O {[%emt 0:01:23]} Nc6 {[%emt 0:12:26]} 10. Bc2 {[%emt 0:09:14]} Re8 {[%emt 0:06:08]} 11. Qd3 {[%emt 0:01:50]} g6 {[%emt 0:00:24]} 12. a3 {[%emt 0:13:36] E48: Nimzo-Indian: Rubinstein: 5 Bd3 d5 including 6 Ne2, but excluding 6 a3} (12. Bh6 Be7 13. Qf3 Bf6 14. Rad1 Bh8 15. Rfe1 Bd7 16. Bb3 Nce7 17. Nxd5 Nxd5 18. Bxd5 exd5 19. h3 Qb6 20. Nf4 Bc6 21. Nh5 Ba4 22. b3 gxh5 23. Qg3+ {0-1 (23) Khismatullin,D (2658)-Riazantsev,A (2708) Khanty-Mansiysk 2013}) 12... Bf8 {[%emt 0:00:58]} 13. Be3 {[%emt 0:06:29]} e5 {[%emt 0:31:17]} ({Predecessor:} 13... Bg7 14. Rad1 Bd7 15. Ne4 Nce7 16. Nd6 Rf8 17. Nxb7 Qb6 18. Nc5 Bb5 19. Qd2 Bxe2 20. Qxe2 Qxb2 {½-½ (29) Tisdall,J (2470)-Bern,I (2360) Norway 1995}) 14. Nxd5 {[%emt 0:11:01]} Bf5 {[%emt 0:06:44]} 15. Qd2 {[%emt 0:07:48]} Bxc2 {[%emt 0:02:42]} 16. Qxc2 {[%emt 0:05:56]} Qxd5 {[%emt 0:00:08]} 17. Rfd1 {[%emt 0:03:09]} Bg7 {[%emt 0:04:17]} 18. Nc3 {[%emt 0:02:11]} Qa5 {[%emt 0:08:11]} 19. b4 {[%emt 0:08:11]} Qc7 {[%emt 0:00:52]} 20. Nd5 {[%emt 0:05:34]} Qb8 {[%emt 0:01:39]} 21. dxe5 {[%emt 0:03:53]} Bxe5 {[%emt 0:00:30]} (21... Qxe5 $11 {keeps the balance.} 22. Rac1 Rad8) 22. Rac1 {[%emt 0:01:05]} Bxh2+ {[%emt 0:09:24]} 23. Kh1 {[%emt 0:00:05]} Be5 {[%emt 0:00:04] [#]} 24. Bg5 {[%emt 0:01:11]} ({White must play} 24. f4 $1 $16 {[%cal Rf4e5]} Bg7 25. b5) 24... h6 {[%emt 0:05:03]} 25. Bxh6 {[%emt 0:03:37]} Qd8 {[%emt 0:00:54]} 26. g3 $2 {[%emt 0:03:18] [#]} (26. Qc4 $11) 26... Nd4 $1 {[%emt 0:01:36]} 27. Qc4 {[%emt 0:01:08]} Rc8 {[%emt 0:01:44]} 28. Qxc8 $2 {[%emt 0:00:26]} (28. Qa2 Qd7 29. Kg2) 28... Qxd5+ {[%emt 0:00:07]} (28... Qxc8 $2 {perishes.} 29. Rxc8 Rxc8 30. Ne7+ {[%mdl 64] Double Attack} Kh7 31. Nxc8 $18) 29. Kh2 {[%emt 0:02:13]} Rxc8 {[%emt 0:00:02]} 30. Rxc8+ {[%emt 0:00:04]} Kh7 {[%emt 0:00:04]} 31. Ra1 0-1

[Event "AZE-ch Women 2019"]
[Site "Baku"]
[Date "2019.02.05"]
[Round "2.8"]
[White "Hajiyeva, Altunay"]
[Black "Babazade, Zhala"]
[Result "1/2-1/2"]
[ECO "C44"]
[WhiteElo "1315"]
[BlackElo "1823"]
[Annotator "NA RC"]
[PlyCount "61"]
[EventDate "2019.02.04"]
[EventType "swiss"]
[EventCountry "AZE"]
[SourceTitle "playchess.com"]
[Source "ChessBase"]
[SourceQuality "1"]
[TimeControl "40/5400+30:1800+30"]

{[%evp 8,61,61,56,68,22,46,28,32,44,49,35,39,0,64,31,49,46,32767,45,54,50,32767,60,32767,59,68,34,32767,73,116,56,77,32,56,27,31,27,45,45,46,56,92,50,105,80,32767,85,109,32767,225,0,116,0,224,0]} 1. e4 {[%emt 0:00:00]} e5 {[%emt 0:00:00]} 2. Nf3 {[%emt 0:00:00]} Nc6 {[%emt 0:00:44]} 3. d4 {[%emt 0:00:00]} exd4 {[%emt 0:01:07]} 4. Nxd4 {[%emt 0:00:11]} Nxd4 {[%emt 0:00:38]} 5. Qxd4 {[%emt 0:00:07]} Qf6 {[%emt 0:00:37]} 6. Qd3 {[%emt 0:02:50] C45: Scotch Game} (6. e5 Qb6 7. Qf4 d5 8. Nc3 Be6 9. Bd3 O-O-O 10. O-O c5 11. b3 Ne7 12. Kh1 a6 13. Bb2 Qc7 14. Rae1 f5 {0-1 (60) Ortiz Suarez,I (2598)-Granda Zuniga,J (2659) Cochabamba 2013}) 6... Bc5 {[%emt 0:00:45]} 7. Qg3 {[%emt 0:21:26]} Ne7 $146 {[%emt 0:05:26]} ({Much weaker is} 7... Qd4 $6 8. Nc3 $16) ({Predecessor:} 7... d6 8. f3 Be3 9. Kd1 Bxc1 10. Kxc1 h6 11. Bb5+ c6 12. Bc4 Ne7 13. Nc3 Ng6 {0-1 (27) Martins,J-Nakamura,Y Goiania 2011}) 8. Nc3 {[%emt 0:04:41]} c6 {[%emt 0:01:35]} 9. Bd3 {[%emt 0:06:58]} Ng6 {[%emt 0:05:47]} 10. f4 {[%emt 0:06:58]} Qh4 {[%emt 0:08:34]} 11. Bd2 {[%emt 0:04:02]} Qxg3+ {[%emt 0:02:07]} 12. hxg3 {[%emt 0:00:04]} d6 {[%emt 0:02:16]} 13. Be2 {[%emt 0:14:06]} Bd7 {[%emt 0:04:52]} 14. O-O-O {[%emt 0:01:33]} b5 {[%emt 0:03:05]} 15. Bf3 {[%emt 0:13:32]} a5 {[%emt 0:03:57]} 16. Ne2 {[%emt 0:02:06]} b4 {[%emt 0:07:21]} 17. c3 {[%emt 0:01:42]} h6 {[%emt 0:07:29]} ({Better is} 17... O-O $14) 18. Nd4 {[%emt 0:02:01]} O-O {[%emt 0:10:14]} 19. Kc2 {[%emt 0:12:05]} a4 {[%emt 0:04:47]} 20. Be1 {[%emt 0:02:28]} ({Better is} 20. Nf5 $16) 20... Rfb8 {[%emt 0:05:05]} 21. Kc1 {[%emt 0:00:31]} b3 {[%emt 0:09:19]} 22. a3 {[%emt 0:00:11]} Ne7 {[%emt 0:00:44]} 23. g4 {[%emt 0:00:28]} f6 {[%emt 0:01:44]} 24. Bg3 {[%emt 0:00:43]} Rb6 {[%emt 0:03:03]} 25. f5 {[%emt 0:00:04]} Kf7 {[%emt 0:04:10]} 26. Bf4 {[%emt 0:00:20]} Nc8 $1 {[%emt 0:02:12] [#]} 27. Rhe1 {[%emt 0:00:10]} ({Only move:} 27. Bxh6 $1 $18 {[%mdl 512]} gxh6 28. Rxh6) 27... Na7 $1 {[%emt 0:01:43]} 28. Rh1 {[%emt 0:00:46]} ({White should play} 28. Ne2 $16) 28... Nc8 {[%emt 0:00:01]} 29. Rhe1 {[%emt 0:00:10]} Na7 {[%emt 0:00:12]} 30. Rh1 {[%emt 0:00:06]} Nc8 {[%emt 0:00:03] [#]} 31. Rhe1 $11 {[%emt 0:00:15]} 1/2-1/2

[Event "AZE-ch Women 2019"]
[Site "Baku"]
[Date "2019.02.05"]
[Round "2.9"]
[White "Babayeva, Samira"]
[Black "Jafarova, Aysel"]
[Result "1-0"]
[ECO "C05"]
[WhiteElo "1773"]
[BlackElo "1376"]
[Annotator "NA RC"]
[PlyCount "81"]
[EventDate "2019.02.04"]
[EventType "swiss"]
[EventCountry "AZE"]
[SourceTitle "playchess.com"]
[Source "ChessBase"]
[SourceQuality "1"]
[TimeControl "40/5400+30:1800+30"]

1. e4 {[%emt 0:00:00]} e6 {[%emt 0:00:00]} 2. d4 {[%emt 0:00:00]} d5 {[%emt 0:00:00]} 3. Nd2 {[%emt 0:00:02]} Nf6 {[%emt 0:00:00]} 4. Bd3 {[%emt 0:00:27]} Be7 {[%emt 0:03:01]} 5. c3 {[%emt 0:00:18]} c5 {[%emt 0:00:53]} 6. e5 {[%emt 0:02:11]} Nfd7 {[%emt 0:00:25]} 7. f4 {[%emt 0:01:04]} cxd4 {[%emt 0:02:58]} 8. cxd4 {[%emt 0:00:07]} Nc6 {[%emt 0:01:16]} 9. Ne2 {[%emt 0:03:26]} f6 {[%emt 0:03:55]} 10. O-O {[%emt 0:10:35]} Qb6 {[%emt 0:04:15]} 11. exf6 {[%emt 0:13:34]} Nxf6 {[%emt 0:01:05]} 12. Nf3 {[%emt 0:01:12]} O-O {[%emt 0:02:11]} 13. Ne5 {[%emt 0:02:22]} Nxd4 {[%emt 0:05:59]} 14. Nxd4 {[%emt 0:02:10]} Qxd4+ {[%emt 0:00:31]} 15. Kh1 {[%emt 0:00:01]} Ne4 {[%emt 0:11:07]} 16. Qe2 {[%emt 0:07:29]} Bd6 {[%emt 0:12:21]} 17. Be3 {[%emt 0:01:43]} Qb4 {[%emt 0:01:40]} 18. a3 {[%emt 0:00:04]} Qa5 {[%emt 0:03:13]} 19. b4 {[%emt 0:01:28]} Qd8 {[%emt 0:02:35]} 20. Bxe4 {[%emt 0:02:40]} dxe4 {[%emt 0:00:55]} 21. Rad1 {[%emt 0:00:46]} Qe7 {[%emt 0:03:16]} 22. Nc4 {[%emt 0:00:12]} Bxb4 {[%emt 0:07:55]} 23. axb4 {[%emt 0:00:24]} Qxb4 {[%emt 0:00:15]} 24. Rd4 {[%emt 0:01:51]} Qb5 {[%emt 0:06:39]} 25. Qf2 {[%emt 0:02:03]} b6 {[%emt 0:06:29]} 26. Nd6 {[%emt 0:01:36]} Qh5 {[%emt 0:01:41]} 27. Rxe4 {[%emt 0:02:19]} Bd7 {[%emt 0:03:24]} 28. Bd4 {[%emt 0:05:16]} Qd5 {[%emt 0:02:33]} 29. Be5 {[%emt 0:00:20]} Qd3 {[%emt 0:06:01]} 30. Rd4 {[%emt 0:01:43]} Qg6 {[%emt 0:01:28]} 31. Rc1 {[%emt 0:00:45]} Be8 {[%emt 0:02:05]} 32. h3 {[%emt 0:02:23]} h6 {[%emt 0:01:29]} 33. Rc7 {[%emt 0:00:33]} Bf7 {[%emt 0:00:11]} 34. Nxf7 {[%emt 0:00:34]} Rxf7 {[%emt 0:00:05]} 35. Rdd7 {[%emt 0:00:39]} Qb1+ {[%emt 0:02:32]} 36. Kh2 {[%emt 0:00:12]} Rxd7 {[%emt 0:00:29]} 37. Rxd7 {[%emt 0:00:17]} g6 {[%emt 0:01:40]} 38. Rg7+ {[%emt 0:00:11]} Kf8 {[%emt 0:00:05]} 39. Qh4 {[%emt 0:00:10]} g5 {[%emt 0:01:30]} 40. Qxh6 {[%emt 0:00:00]} gxf4 {[%emt 0:00:00]} 41. Qh8# {[%emt 0:00:42]} 1-0